[Event "Titled Tuesday Blitz August 1 Early 2023"]
[White "Romero Arzuaga, Yudel"]
[Black "Tikhonov, Viacheslav"]
[WhiteFideId "3521010"]
[BlackFideId "44196407"]
[WhiteElo "2351"]
[BlackElo "2497"]
[Result "1/2-1/2"]
[Round "4"]
[TimeControl "180+1"]
[Date "2023.08.01"]
[WhiteClock "0:00:10"]
[BlackClock "0:00:14"]
[Board "172"]

1. d4 {[%clk 0:03:00]}  d5 {[%clk 0:02:58]} 2. Nf3 {[%clk 0:03:00]}  Nf6 {[%clk 0:02:58]} 3. Bf4 {[%clk 0:03:00]}  c5 {[%clk 0:02:56]} 4. e3 {[%clk 0:03:00]}  Nc6 {[%clk 0:02:54]} 5. c3 {[%clk 0:02:59]}  Qb6 {[%clk 0:02:54]} 6. Qb3 {[%clk 0:02:59]}  c4 {[%clk 0:02:54]} 7. Qxb6 {[%clk 0:02:59]}  axb6 {[%clk 0:02:55]} 8. Be2 {[%clk 0:02:58]}  b5 {[%clk 0:02:54]} 9. Na3 {[%clk 0:02:58]}  Ra5 {[%clk 0:02:46]} 10. Bc7 {[%clk 0:02:51]}  b6 {[%clk 0:02:36]} 11. Bxb6 {[%clk 0:02:43]}  Ra6 {[%clk 0:02:37]} 12. Bc5 {[%clk 0:02:42]}  Ra5 {[%clk 0:02:26]} 13. Bb6 {[%clk 0:02:27]}  Ra6 {[%clk 0:02:24]} 14. Bc7 {[%clk 0:02:26]}  b4 {[%clk 0:02:24]} 15. Nb5 {[%clk 0:02:21]}  Bf5 {[%clk 0:02:15]} 16. Bf4 {[%clk 0:02:14]}  Kd7 {[%clk 0:02:15]} 17. Ne5+ {[%clk 0:02:09]}  Nxe5 {[%clk 0:02:13]} 18. dxe5 {[%clk 0:02:10]}  Ne4 {[%clk 0:02:11]} 19. f3 {[%clk 0:01:52]}  Nc5 {[%clk 0:02:00]} 20. cxb4 {[%clk 0:01:46]}  Nb3 {[%clk 0:02:00]} 21. Kf2 {[%clk 0:01:38]}  Nxa1 {[%clk 0:01:59]} 22. Rxa1 {[%clk 0:01:39]}  e6 {[%clk 0:01:55]} 23. a3 {[%clk 0:01:37]}  Bxb4 {[%clk 0:01:52]} 24. Nd4 {[%clk 0:01:37]}  Bg6 {[%clk 0:01:42]} 25. Rd1 {[%clk 0:01:31]}  Bc5 {[%clk 0:01:41]} 26. Nb3 {[%clk 0:01:01]}  Kc6 {[%clk 0:01:31]} 27. Nxc5 {[%clk 0:00:57]}  Kxc5 {[%clk 0:01:32]} 28. e4 {[%clk 0:00:58]}  Rd8 {[%clk 0:00:49]} 29. Bd2 {[%clk 0:00:51]}  d4 {[%clk 0:00:47]} 30. Bb4+ {[%clk 0:00:51]}  Kb5 {[%clk 0:00:43]} 31. b3 {[%clk 0:00:51]}  d3 {[%clk 0:00:44]} 32. Bf1 {[%clk 0:00:31]}  f5 {[%clk 0:00:35]} 33. bxc4+ {[%clk 0:00:30]}  Kxc4 {[%clk 0:00:36]} 34. Ke3 {[%clk 0:00:29]}  fxe4 {[%clk 0:00:36]} 35. fxe4 {[%clk 0:00:29]}  Kb3 {[%clk 0:00:28]} 36. Bxd3 {[%clk 0:00:26]}  Raa8 {[%clk 0:00:28]} 37. Rb1+ {[%clk 0:00:24]}  Ka2 {[%clk 0:00:28]} 38. Rf1 {[%clk 0:00:19]}  Rac8 {[%clk 0:00:23]} 39. Rf2+ {[%clk 0:00:19]}  Kb3 {[%clk 0:00:23]} 40. g4 {[%clk 0:00:16]}  Rd7 {[%clk 0:00:20]} 41. h4 {[%clk 0:00:15]}  Rcd8 {[%clk 0:00:20]} 42. Bc2+ {[%clk 0:00:15]}  Kc4 {[%clk 0:00:21]} 43. Ba4 {[%clk 0:00:14]}  Rd3+ {[%clk 0:00:20]} 44. Ke2 {[%clk 0:00:14]}  Bxe4 {[%clk 0:00:19]} 45. Rf4 {[%clk 0:00:14]}  Kd5 {[%clk 0:00:16]} 46. Rxe4 {[%clk 0:00:13]}  Kxe4 {[%clk 0:00:16]} 47. Bc2 {[%clk 0:00:13]}  Rd5 {[%clk 0:00:13]} 48. Bd6 {[%clk 0:00:11]}  g6 {[%clk 0:00:13]} 49. h5 {[%clk 0:00:11]}  Rd4 {[%clk 0:00:14]} 50. a4 {[%clk 0:00:10]}  Rd5 {[%clk 0:00:13]} 51. a5 {[%clk 0:00:10]}  Rxa5 {[%clk 0:00:14]} 52. Bxd3+ {[%clk 0:00:10]}  Kf4 {[%clk 0:00:15]} 53. hxg6 {[%clk 0:00:09]}  hxg6 {[%clk 0:00:15]} 54. Bxg6 {[%clk 0:00:09]}  Ra2+ {[%clk 0:00:16]} 55. Kd3 {[%clk 0:00:09]}  Kxg4 {[%clk 0:00:16]} 56. Bf7 {[%clk 0:00:09]}  Kf5 {[%clk 0:00:16]} 57. Kd4 {[%clk 0:00:10]}  Rd2+ {[%clk 0:00:16]} 58. Kc5 {[%clk 0:00:10]}  Rd5+ {[%clk 0:00:16]} 59. Kc6 {[%clk 0:00:10]}  Rxe5 {[%clk 0:00:13]} 60. Bxe5 {[%clk 0:00:10]}  Kxe5 {[%clk 0:00:14]} 61. Bxe6 {[%clk 0:00:10]} 1/2-1/2


[Site "https://www.chess.com"]

[Event "Titled Tuesday Blitz August 1 Early 2023"]
[White "Topalov, Aleksandar"]
[Black "Grossboss19"]
[WhiteFideId "925659"]
[WhiteElo "2349"]
[BlackElo "2494"]
[Result "1-0"]
[Round "4"]
[TimeControl "180+1"]
[Date "2023.08.01"]
[WhiteClock "0:00:08"]
[BlackClock "0:00:00"]
[Board "173"]

1. b3 {[%clk 0:03:00]}  d5 {[%clk 0:02:58]} 2. Bb2 {[%clk 0:03:00]}  Nf6 {[%clk 0:02:59]} 3. Nf3 {[%clk 0:03:00]}  c5 {[%clk 0:02:56]} 4. e3 {[%clk 0:02:59]}  e6 {[%clk 0:02:56]} 5. d4 {[%clk 0:02:58]}  Nc6 {[%clk 0:02:55]} 6. Nbd2 {[%clk 0:02:59]}  Bd6 {[%clk 0:02:52]} 7. Bd3 {[%clk 0:02:59]}  O-O {[%clk 0:02:52]} 8. Ne5 {[%clk 0:02:56]}  Nb4 {[%clk 0:02:30]} 9. O-O {[%clk 0:02:51]}  Nxd3 {[%clk 0:02:28]} 10. cxd3 {[%clk 0:02:52]}  cxd4 {[%clk 0:02:28]} 11. exd4 {[%clk 0:02:51]}  b6 {[%clk 0:02:22]} 12. Ndf3 {[%clk 0:02:42]}  Bb7 {[%clk 0:02:17]} 13. Qd2 {[%clk 0:02:39]}  h6 {[%clk 0:02:14]} 14. g4 {[%clk 0:02:34]}  Nh7 {[%clk 0:02:11]} 15. h4 {[%clk 0:02:30]}  Be7 {[%clk 0:02:07]} 16. h5 {[%clk 0:02:09]}  Rc8 {[%clk 0:02:00]} 17. Rac1 {[%clk 0:02:08]}  Bd6 {[%clk 0:01:49]} 18. Kg2 {[%clk 0:02:04]}  Qe7 {[%clk 0:01:31]} 19. Qf4 {[%clk 0:01:51]}  Rxc1 {[%clk 0:01:19]} 20. Rxc1 {[%clk 0:01:50]}  Rc8 {[%clk 0:01:19]} 21. Rxc8+ {[%clk 0:01:48]}  Bxc8 {[%clk 0:01:18]} 22. Qc1 {[%clk 0:01:48]}  Qc7 {[%clk 0:01:16]} 23. Qxc7 {[%clk 0:01:40]}  Bxc7 {[%clk 0:01:17]} 24. Ba3 {[%clk 0:01:39]}  Bb7 {[%clk 0:01:09]} 25. Kf1 {[%clk 0:01:37]}  f6 {[%clk 0:01:10]} 26. Ng6 {[%clk 0:01:34]}  Kf7 {[%clk 0:01:07]} 27. Ke2 {[%clk 0:01:33]}  Ba6 {[%clk 0:01:00]} 28. Ke3 {[%clk 0:01:15]}  Ng5 {[%clk 0:00:58]} 29. Nfh4 {[%clk 0:00:57]}  Ke8 {[%clk 0:00:51]} 30. Nf8 {[%clk 0:00:47]}  Bc8 {[%clk 0:00:48]} 31. f4 {[%clk 0:00:35]}  Nf7 {[%clk 0:00:47]} 32. Nfg6 {[%clk 0:00:33]}  Bd6 {[%clk 0:00:46]} 33. Bb2 {[%clk 0:00:27]}  Kd7 {[%clk 0:00:43]} 34. f5 {[%clk 0:00:16]}  Ke8 {[%clk 0:00:33]} 35. fxe6 {[%clk 0:00:13]}  Bxe6 {[%clk 0:00:32]} 36. Nf5 {[%clk 0:00:13]}  Bxf5 {[%clk 0:00:28]} 37. gxf5 {[%clk 0:00:14]}  Kd7 {[%clk 0:00:20]} 38. Nf4 {[%clk 0:00:13]}  Bxf4+ {[%clk 0:00:19]} 39. Kxf4 {[%clk 0:00:14]}  Nd6 {[%clk 0:00:20]} 40. Ba3 {[%clk 0:00:14]}  Ne8 {[%clk 0:00:17]} 41. Bf8 {[%clk 0:00:13]}  Kc6 {[%clk 0:00:16]} 42. Ke3 {[%clk 0:00:13]}  Kb5 {[%clk 0:00:16]} 43. a4+ {[%clk 0:00:11]}  Kc6 {[%clk 0:00:16]} 44. Kf4 {[%clk 0:00:11]}  Kd7 {[%clk 0:00:16]} 45. b4 {[%clk 0:00:11]}  a6 {[%clk 0:00:16]} 46. b5 {[%clk 0:00:11]}  axb5 {[%clk 0:00:13]} 47. axb5 {[%clk 0:00:11]}  Nc7 {[%clk 0:00:13]} 48. Bxg7 {[%clk 0:00:11]}  Ke7 {[%clk 0:00:14]} 49. Bxh6 {[%clk 0:00:11]}  Nxb5 {[%clk 0:00:14]} 50. Ke3 {[%clk 0:00:11]}  Nd6 {[%clk 0:00:14]} 51. Bf4 {[%clk 0:00:08]}  Nxf5+ {[%clk 0:00:14]} 52. Kd2 {[%clk 0:00:09]}  Nxd4 {[%clk 0:00:06]} 53. Be3 {[%clk 0:00:09]}  Nb3+ {[%clk 0:00:04]} 54. Kc3 {[%clk 0:00:09]}  Nc5 {[%clk 0:00:00]} 55. Kd4 {[%clk 0:00:08]} 1-0


[Site "https://www.chess.com"]

[Event "Titled Tuesday Blitz August 1 Early 2023"]
[White "Viskelis, Darius"]
[Black "Dushyant Sharma"]
[WhiteFideId "12800830"]
[BlackFideId "25065130"]
[WhiteElo "2342"]
[BlackElo "2490"]
[Result "0-1"]
[Round "4"]
[TimeControl "180+1"]
[Date "2023.08.01"]
[WhiteClock "0:00:00"]
[BlackClock "0:00:05"]
[Board "176"]

1. e4 {[%clk 0:03:00]}  d5 {[%clk 0:02:59]} 2. exd5 {[%clk 0:02:59]}  Nf6 {[%clk 0:02:55]} 3. c4 {[%clk 0:02:59]}  c6 {[%clk 0:02:55]} 4. d4 {[%clk 0:02:59]}  cxd5 {[%clk 0:02:55]} 5. Nc3 {[%clk 0:02:59]}  Nc6 {[%clk 0:02:56]} 6. Bg5 {[%clk 0:02:58]}  e6 {[%clk 0:02:55]} 7. c5 {[%clk 0:02:54]}  Be7 {[%clk 0:02:56]} 8. Nf3 {[%clk 0:02:54]}  O-O {[%clk 0:02:56]} 9. Bb5 {[%clk 0:02:51]}  Ne4 {[%clk 0:02:56]} 10. Bf4 {[%clk 0:02:45]}  f5 {[%clk 0:02:47]} 11. O-O {[%clk 0:02:42]}  Bd7 {[%clk 0:02:46]} 12. Rc1 {[%clk 0:02:18]}  Kh8 {[%clk 0:02:35]} 13. Re1 {[%clk 0:02:04]}  Bf6 {[%clk 0:02:27]} 14. Bxc6 {[%clk 0:02:02]}  Bxc6 {[%clk 0:02:19]} 15. Be5 {[%clk 0:01:58]}  b6 {[%clk 0:02:08]} 16. b4 {[%clk 0:01:57]}  bxc5 {[%clk 0:02:07]} 17. dxc5 {[%clk 0:01:55]}  Bxe5 {[%clk 0:01:49]} 18. Nxe5 {[%clk 0:01:54]}  Qc7 {[%clk 0:01:47]} 19. Qd4 {[%clk 0:01:51]}  Rab8 {[%clk 0:01:43]} 20. f3 {[%clk 0:01:38]}  Nxc3 {[%clk 0:01:35]} 21. Rxc3 {[%clk 0:01:35]}  a5 {[%clk 0:01:35]} 22. a3 {[%clk 0:01:23]}  axb4 {[%clk 0:01:28]} 23. axb4 {[%clk 0:01:24]}  Rb7 {[%clk 0:01:28]} 24. Rce3 {[%clk 0:01:09]}  f4 {[%clk 0:01:20]} 25. Ra3 {[%clk 0:00:54]}  Rfb8 {[%clk 0:01:16]} 26. Nd3 {[%clk 0:00:47]}  Bb5 {[%clk 0:01:11]} 27. Rxe6 {[%clk 0:00:44]}  Bxd3 {[%clk 0:01:12]} 28. Qxd3 {[%clk 0:00:27]}  Rxb4 {[%clk 0:01:10]} 29. Qxd5 {[%clk 0:00:25]}  Rb1+ {[%clk 0:00:10]} 30. Kf2 {[%clk 0:00:24]}  Rd1 {[%clk 0:00:11]} 31. Qc4 {[%clk 0:00:14]}  Rd2+ {[%clk 0:00:11]} 32. Ke1 {[%clk 0:00:13]}  Qd7 {[%clk 0:00:08]} 33. Rd6 {[%clk 0:00:12]}  Rxd6 {[%clk 0:00:07]} 34. cxd6 {[%clk 0:00:11]}  Qxd6 {[%clk 0:00:03]} 35. Rd3 {[%clk 0:00:11]}  Re8+ {[%clk 0:00:03]} 36. Kd2 {[%clk 0:00:09]}  Qe5 {[%clk 0:00:02]} 37. Qd4 {[%clk 0:00:04]}  Qe1+ {[%clk 0:00:02]} 38. Kc2 {[%clk 0:00:04]}  Re2+ {[%clk 0:00:02]} 39. Kb3 {[%clk 0:00:04]}  Qb1+ {[%clk 0:00:02]} 40. Kc4 {[%clk 0:00:04]}  Rc2+ {[%clk 0:00:02]} 41. Rc3 {[%clk 0:00:04]}  Qa2+ {[%clk 0:00:03]} 42. Kd3 {[%clk 0:00:03]}  Rd2+ {[%clk 0:00:03]} 43. Ke4 {[%clk 0:00:03]}  Rxd4+ {[%clk 0:00:03]} 44. Kxd4 {[%clk 0:00:03]}  h6 {[%clk 0:00:04]} 45. Kd3 {[%clk 0:00:01]}  Qxg2 {[%clk 0:00:05]} 46. Rc2 {[%clk 0:00:00]}  Qxf3+ {[%clk 0:00:05]} 0-1


[Site "https://www.chess.com"]

[Event "Titled Tuesday Blitz August 1 Early 2023"]
[White "Kaminski, Victor"]
[Black "Ljukin, Sergei"]
[WhiteFideId "1131630"]
[BlackFideId "14102200"]
[WhiteElo "2319"]
[BlackElo "2485"]
[Result "0-1"]
[Round "4"]
[TimeControl "180+1"]
[Date "2023.08.01"]
[WhiteClock "0:00:01"]
[BlackClock "0:00:12"]
[Board "179"]

1. e4 {[%clk 0:02:58]}  e6 {[%clk 0:02:54]} 2. d4 {[%clk 0:02:57]}  d5 {[%clk 0:02:54]} 3. Nc3 {[%clk 0:02:58]}  Bb4 {[%clk 0:02:54]} 4. e5 {[%clk 0:02:53]}  Ne7 {[%clk 0:02:54]} 5. Bd2 {[%clk 0:02:46]}  b6 {[%clk 0:02:54]} 6. Nf3 {[%clk 0:02:41]}  O-O {[%clk 0:02:52]} 7. Ne2 {[%clk 0:02:31]}  Bxd2+ {[%clk 0:02:51]} 8. Qxd2 {[%clk 0:02:32]}  c5 {[%clk 0:02:51]} 9. c3 {[%clk 0:02:31]}  Ba6 {[%clk 0:02:51]} 10. h4 {[%clk 0:02:25]}  Nbc6 {[%clk 0:02:50]} 11. h5 {[%clk 0:02:25]}  h6 {[%clk 0:02:50]} 12. Ng3 {[%clk 0:02:18]}  Bxf1 {[%clk 0:02:48]} 13. Kxf1 {[%clk 0:02:19]}  f6 {[%clk 0:02:48]} 14. exf6 {[%clk 0:02:16]}  Rxf6 {[%clk 0:02:48]} 15. Re1 {[%clk 0:02:16]}  Qd7 {[%clk 0:02:44]} 16. Rh4 {[%clk 0:02:07]}  Raf8 {[%clk 0:02:42]} 17. Rg4 {[%clk 0:02:06]}  Kh8 {[%clk 0:02:20]} 18. Kg1 {[%clk 0:02:03]}  R6f7 {[%clk 0:02:09]} 19. Qe3 {[%clk 0:01:45]}  e5 {[%clk 0:02:02]} 20. Nh2 {[%clk 0:01:09]}  cxd4 {[%clk 0:01:54]} 21. cxd4 {[%clk 0:01:07]}  exd4 {[%clk 0:01:42]} 22. Qe6 {[%clk 0:01:01]}  Qxe6 {[%clk 0:01:38]} 23. Rxe6 {[%clk 0:01:02]}  Rxf2 {[%clk 0:01:34]} 24. Nf3 {[%clk 0:01:02]}  Rxb2 {[%clk 0:01:33]} 25. Nxd4 {[%clk 0:00:50]}  Rb4 {[%clk 0:00:54]} 26. Kh2 {[%clk 0:00:30]}  Rxd4 {[%clk 0:00:45]} 27. Rxd4 {[%clk 0:00:28]}  Nxd4 {[%clk 0:00:45]} 28. Rxe7 {[%clk 0:00:29]}  Nc6 {[%clk 0:00:26]} 29. Rc7 {[%clk 0:00:25]}  Rf6 {[%clk 0:00:25]} 30. Rd7 {[%clk 0:00:18]}  d4 {[%clk 0:00:25]} 31. Ne4 {[%clk 0:00:14]}  Re6 {[%clk 0:00:25]} 32. Nd6 {[%clk 0:00:11]}  Kg8 {[%clk 0:00:19]} 33. Nf5 {[%clk 0:00:10]}  Re5 {[%clk 0:00:13]} 34. Rxg7+ {[%clk 0:00:05]}  Kf8 {[%clk 0:00:12]} 35. Rc7 {[%clk 0:00:05]}  Rxf5 {[%clk 0:00:10]} 36. Rxc6 {[%clk 0:00:06]}  Rd5 {[%clk 0:00:10]} 37. Kg3 {[%clk 0:00:06]}  d3 {[%clk 0:00:10]} 38. Rc1 {[%clk 0:00:05]}  d2 {[%clk 0:00:11]} 39. Rd1 {[%clk 0:00:06]}  Kg7 {[%clk 0:00:11]} 40. Kf4 {[%clk 0:00:06]}  Kf6 {[%clk 0:00:11]} 41. g4 {[%clk 0:00:06]}  Rd4+ {[%clk 0:00:11]} 42. Ke3 {[%clk 0:00:05]}  Rd8 {[%clk 0:00:11]} 43. Rxd2 {[%clk 0:00:04]}  Rxd2 {[%clk 0:00:11]} 44. Kxd2 {[%clk 0:00:01]}  Kg5 {[%clk 0:00:12]} 0-1


[Site "https://www.chess.com"]

[Event "Titled Tuesday Blitz August 1 Early 2023"]
[White "Molenda, Marcin"]
[Black "Van den Dikkenberg, Erik"]
[WhiteFideId "1173065"]
[BlackFideId "1005880"]
[WhiteElo "2484"]
[BlackElo "2318"]
[Result "1-0"]
[Round "4"]
[TimeControl "180+1"]
[Date "2023.08.01"]
[WhiteClock "0:00:03"]
[BlackClock "0:00:00"]
[Board "180"]

1. e4 {[%clk 0:03:00]}  c5 {[%clk 0:02:59]} 2. Nc3 {[%clk 0:02:58]}  d6 {[%clk 0:02:59]} 3. f4 {[%clk 0:02:58]}  a6 {[%clk 0:02:59]} 4. a4 {[%clk 0:02:56]}  Nc6 {[%clk 0:02:58]} 5. Nf3 {[%clk 0:02:57]}  Nf6 {[%clk 0:02:59]} 6. Bc4 {[%clk 0:02:56]}  g6 {[%clk 0:02:57]} 7. d3 {[%clk 0:02:55]}  Bg7 {[%clk 0:02:57]} 8. O-O {[%clk 0:02:55]}  O-O {[%clk 0:02:56]} 9. Qe1 {[%clk 0:02:55]}  Bg4 {[%clk 0:02:54]} 10. Qh4 {[%clk 0:02:52]}  Bxf3 {[%clk 0:02:53]} 11. Rxf3 {[%clk 0:02:53]}  Nd4 {[%clk 0:02:53]} 12. Rh3 {[%clk 0:02:24]}  Nxc2 {[%clk 0:02:47]} 13. Rb1 {[%clk 0:01:58]}  e6 {[%clk 0:02:35]} 14. f5 {[%clk 0:01:32]}  b5 {[%clk 0:02:09]} 15. Bg5 {[%clk 0:01:21]}  h5 {[%clk 0:01:55]} 16. Qg3 {[%clk 0:01:09]}  bxc4 {[%clk 0:01:46]} 17. Rf1 {[%clk 0:01:03]}  exf5 {[%clk 0:01:30]} 18. Nd5 {[%clk 0:00:58]}  Nd4 {[%clk 0:01:18]} 19. Kh1 {[%clk 0:00:55]}  cxd3 {[%clk 0:01:05]} 20. exf5 {[%clk 0:00:53]}  Ne4 {[%clk 0:00:59]} 21. Qf4 {[%clk 0:00:25]}  Nxg5 {[%clk 0:00:40]} 22. f6 {[%clk 0:00:19]}  Nde6 {[%clk 0:00:33]} 23. Qh4 {[%clk 0:00:10]}  Bh6 {[%clk 0:00:32]} 24. Rg3 {[%clk 0:00:09]}  Kh7 {[%clk 0:00:31]} 25. Qc4 {[%clk 0:00:02]}  Rb8 {[%clk 0:00:29]} 26. h4 {[%clk 0:00:02]}  Rb4 {[%clk 0:00:17]} 27. Nxb4 {[%clk 0:00:03]}  cxb4 {[%clk 0:00:14]} 28. hxg5 {[%clk 0:00:03]}  Bxg5 {[%clk 0:00:14]} 29. Qxd3 {[%clk 0:00:04]}  Bxf6 {[%clk 0:00:13]} 30. Rh3 {[%clk 0:00:03]}  h4 {[%clk 0:00:10]} 31. Rhf3 {[%clk 0:00:02]}  Bg5 {[%clk 0:00:10]} 32. Rxf7+ {[%clk 0:00:03]}  Rxf7 {[%clk 0:00:10]} 33. Rxf7+ {[%clk 0:00:03]}  Ng7 {[%clk 0:00:10]} 34. Qd4 {[%clk 0:00:03]}  Qg8 {[%clk 0:00:09]} 35. Rb7 {[%clk 0:00:02]}  Kh6 {[%clk 0:00:07]} 36. Qxd6 {[%clk 0:00:03]}  Qc4 {[%clk 0:00:06]} 37. Qxb4 {[%clk 0:00:02]}  Qf1+ {[%clk 0:00:05]} 38. Kh2 {[%clk 0:00:02]}  Bf4+ {[%clk 0:00:06]} 39. Kh3 {[%clk 0:00:03]}  Qh1+ {[%clk 0:00:05]} 40. Kg4 {[%clk 0:00:03]}  Qxg2+ {[%clk 0:00:02]} 41. Kxf4 {[%clk 0:00:04]}  Qg5+ {[%clk 0:00:03]} 42. Kf3 {[%clk 0:00:03]}  Nf5 {[%clk 0:00:00]} 43. Qf4 {[%clk 0:00:03]} 1-0


[Site "https://www.chess.com"]

[Event "Titled Tuesday Blitz August 1 Early 2023"]
[White "Fuzesabonyilaci"]
[Black "Hoang, Thi Bao Tram"]
[BlackFideId "12401102"]
[WhiteElo "2318"]
[BlackElo "2482"]
[Result "0-1"]
[Round "4"]
[TimeControl "180+1"]
[Date "2023.08.01"]
[WhiteClock "0:00:13"]
[BlackClock "0:01:25"]
[Board "181"]

1. d4 {[%clk 0:03:00]}  d5 {[%clk 0:02:59]} 2. Nc3 {[%clk 0:03:00]}  c6 {[%clk 0:02:57]} 3. Bf4 {[%clk 0:02:56]}  Bf5 {[%clk 0:02:56]} 4. Qd2 {[%clk 0:02:56]}  Nd7 {[%clk 0:02:55]} 5. f3 {[%clk 0:02:56]}  Ngf6 {[%clk 0:02:51]} 6. O-O-O {[%clk 0:02:50]}  h6 {[%clk 0:02:44]} 7. Re1 {[%clk 0:02:50]}  a6 {[%clk 0:02:26]} 8. e4 {[%clk 0:02:48]}  Be6 {[%clk 0:02:26]} 9. g4 {[%clk 0:02:37]}  dxe4 {[%clk 0:02:21]} 10. Nxe4 {[%clk 0:02:36]}  Nxe4 {[%clk 0:02:11]} 11. Rxe4 {[%clk 0:02:35]}  Nf6 {[%clk 0:02:07]} 12. Rxe6 {[%clk 0:02:31]}  fxe6 {[%clk 0:02:07]} 13. Bd3 {[%clk 0:02:28]}  Qd5 {[%clk 0:02:06]} 14. Bg6+ {[%clk 0:02:27]}  Kd7 {[%clk 0:02:06]} 15. Kb1 {[%clk 0:02:09]}  Rd8 {[%clk 0:02:00]} 16. Ne2 {[%clk 0:01:57]}  Qxf3 {[%clk 0:01:53]} 17. Re1 {[%clk 0:01:29]}  Qxg4 {[%clk 0:01:51]} 18. Rg1 {[%clk 0:01:18]}  Qf3 {[%clk 0:01:48]} 19. Qb4 {[%clk 0:00:54]}  Kc8 {[%clk 0:01:32]} 20. Qb6 {[%clk 0:00:52]}  Nd5 {[%clk 0:01:32]} 21. Qa7 {[%clk 0:00:52]}  Nxf4 {[%clk 0:01:30]} 22. Nxf4 {[%clk 0:00:20]}  Qxf4 {[%clk 0:01:29]} 23. Qc5 {[%clk 0:00:15]}  Qxd4 {[%clk 0:01:25]} 24. Qh5 {[%clk 0:00:13]}  Qxg1+ {[%clk 0:01:25]} 0-1


[Site "https://www.chess.com"]

[Event "Titled Tuesday Blitz August 1 Early 2023"]
[White "SicilianPanzer"]
[Black "Yeritsyan, Hayk"]
[BlackFideId "13307320"]
[WhiteElo "2311"]
[BlackElo "2471"]
[Result "1/2-1/2"]
[Round "4"]
[TimeControl "180+1"]
[Date "2023.08.01"]
[WhiteClock "0:00:05"]
[BlackClock "0:00:17"]
[Board "184"]

1. e4 {[%clk 0:03:00]}  c6 {[%clk 0:02:59]} 2. Nf3 {[%clk 0:02:58]}  d5 {[%clk 0:03:00]} 3. Nc3 {[%clk 0:02:58]}  Bg4 {[%clk 0:02:59]} 4. h3 {[%clk 0:02:57]}  Bxf3 {[%clk 0:03:00]} 5. Qxf3 {[%clk 0:02:57]}  e6 {[%clk 0:03:01]} 6. g3 {[%clk 0:02:56]}  Nf6 {[%clk 0:03:01]} 7. Bg2 {[%clk 0:02:56]}  dxe4 {[%clk 0:03:02]} 8. Nxe4 {[%clk 0:02:56]}  Nxe4 {[%clk 0:03:02]} 9. Qxe4 {[%clk 0:02:55]}  Qd5 {[%clk 0:03:03]} 10. O-O {[%clk 0:02:46]}  Qxe4 {[%clk 0:03:03]} 11. Bxe4 {[%clk 0:02:47]}  Nd7 {[%clk 0:03:04]} 12. Rb1 {[%clk 0:02:46]}  Nf6 {[%clk 0:03:04]} 13. Bg2 {[%clk 0:02:46]}  Be7 {[%clk 0:03:01]} 14. b4 {[%clk 0:02:45]}  O-O-O {[%clk 0:02:56]} 15. d3 {[%clk 0:02:25]}  Nd5 {[%clk 0:02:53]} 16. Bd2 {[%clk 0:02:25]}  Bf6 {[%clk 0:02:50]} 17. Rb3 {[%clk 0:02:23]}  Rd7 {[%clk 0:02:49]} 18. b5 {[%clk 0:02:01]}  c5 {[%clk 0:02:47]} 19. c4 {[%clk 0:02:00]}  Ne7 {[%clk 0:02:36]} 20. b6 {[%clk 0:01:36]}  a6 {[%clk 0:02:27]} 21. f4 {[%clk 0:01:25]}  Nf5 {[%clk 0:02:20]} 22. g4 {[%clk 0:01:14]}  Nd4 {[%clk 0:02:20]} 23. Rbb1 {[%clk 0:01:13]}  g6 {[%clk 0:02:01]} 24. Be4 {[%clk 0:00:57]}  h5 {[%clk 0:01:59]} 25. Kg2 {[%clk 0:00:43]}  Bg7 {[%clk 0:01:48]} 26. f5 {[%clk 0:00:35]}  gxf5 {[%clk 0:01:41]} 27. gxf5 {[%clk 0:00:35]}  exf5 {[%clk 0:01:28]} 28. Rxf5 {[%clk 0:00:34]}  Nxf5 {[%clk 0:01:20]} 29. Bxf5 {[%clk 0:00:35]}  Kd8 {[%clk 0:01:21]} 30. Bg5+ {[%clk 0:00:19]}  f6 {[%clk 0:01:19]} 31. Bxd7 {[%clk 0:00:19]}  Kxd7 {[%clk 0:01:10]} 32. Bf4 {[%clk 0:00:18]}  Re8 {[%clk 0:01:06]} 33. Kf3 {[%clk 0:00:18]}  f5 {[%clk 0:01:05]} 34. Be3 {[%clk 0:00:16]}  Bf6 {[%clk 0:01:01]} 35. Bxc5 {[%clk 0:00:14]}  Kc6 {[%clk 0:00:59]} 36. d4 {[%clk 0:00:14]}  Re4 {[%clk 0:00:57]} 37. Rd1 {[%clk 0:00:13]}  Rh4 {[%clk 0:00:48]} 38. Kg2 {[%clk 0:00:12]}  Re4 {[%clk 0:00:46]} 39. a4 {[%clk 0:00:11]}  Bg7 {[%clk 0:00:43]} 40. Kf3 {[%clk 0:00:07]}  Bf6 {[%clk 0:00:43]} 41. Kg2 {[%clk 0:00:06]}  Bd8 {[%clk 0:00:37]} 42. Rf1 {[%clk 0:00:05]}  Bxb6 {[%clk 0:00:27]} 43. Rxf5 {[%clk 0:00:05]}  Bxc5 {[%clk 0:00:28]} 44. Rxc5+ {[%clk 0:00:05]}  Kd6 {[%clk 0:00:27]} 45. Rxh5 {[%clk 0:00:04]}  Rxd4 {[%clk 0:00:27]} 46. Rh7 {[%clk 0:00:03]}  Rxc4 {[%clk 0:00:22]} 47. Rxb7 {[%clk 0:00:03]}  Rxa4 {[%clk 0:00:23]} 48. h4 {[%clk 0:00:02]}  Ke5 {[%clk 0:00:23]} 49. Kg3 {[%clk 0:00:02]}  Kf6 {[%clk 0:00:23]} 50. Kf3 {[%clk 0:00:02]}  Kf5 {[%clk 0:00:23]} 51. Rb6 {[%clk 0:00:02]}  Ra3+ {[%clk 0:00:23]} 52. Kf2 {[%clk 0:00:02]}  Kg4 {[%clk 0:00:20]} 53. Ke2 {[%clk 0:00:01]}  Kxh4 {[%clk 0:00:20]} 54. Kd2 {[%clk 0:00:02]}  Kg4 {[%clk 0:00:20]} 55. Kc2 {[%clk 0:00:02]}  Kf4 {[%clk 0:00:20]} 56. Kb2 {[%clk 0:00:03]}  Ra5 {[%clk 0:00:21]} 57. Rb4+ {[%clk 0:00:02]}  Ke5 {[%clk 0:00:21]} 58. Rb3 {[%clk 0:00:02]}  Kd5 {[%clk 0:00:21]} 59. Ra3 {[%clk 0:00:03]}  Rb5+ {[%clk 0:00:20]} 60. Ka1 {[%clk 0:00:03]}  a5 {[%clk 0:00:20]} 61. Rh3 {[%clk 0:00:03]}  Rb4 {[%clk 0:00:17]} 62. Rh5+ {[%clk 0:00:03]}  Kc4 {[%clk 0:00:17]} 63. Rxa5 {[%clk 0:00:03]}  Kb3 {[%clk 0:00:18]} 64. Rh5 {[%clk 0:00:02]}  Ra4+ {[%clk 0:00:16]} 65. Kb1 {[%clk 0:00:02]}  Rf4 {[%clk 0:00:17]} 66. Rh3+ {[%clk 0:00:02]}  Kc4 {[%clk 0:00:17]} 67. Kb2 {[%clk 0:00:03]}  Rf2+ {[%clk 0:00:17]} 68. Kc1 {[%clk 0:00:03]}  Kb4 {[%clk 0:00:17]} 69. Rh4+ {[%clk 0:00:03]}  Kc3 {[%clk 0:00:17]} 70. Rh3+ {[%clk 0:00:04]}  Kd4 {[%clk 0:00:17]} 71. Rh4+ {[%clk 0:00:04]}  Kd3 {[%clk 0:00:18]} 72. Rh3+ {[%clk 0:00:05]}  Ke2 {[%clk 0:00:19]} 73. Ra3 {[%clk 0:00:05]}  Kf1 {[%clk 0:00:19]} 74. Rc3 {[%clk 0:00:04]}  Kg2 {[%clk 0:00:18]} 75. Rc2 {[%clk 0:00:05]}  Rxc2+ {[%clk 0:00:17]} 76. Kxc2 {[%clk 0:00:05]} 1/2-1/2


[Site "https://www.chess.com"]